[Event "EOC-ch Playoff-A 2021"]
[Site "Online"]
[Date "2021.03.29"]
[Round "1.3"]
[White "Timofeev, Artyom"]
[Black "Engel, Luis"]
[Result "1-0"]
[ECO "E05"]
[WhiteElo "2594"]
[BlackElo "2553"]
[Annotator "ChessBase"]
[PlyCount "129"]
[EventDate "2021.03.29"]
[EventType "team-tourn"]
[EventCountry "NET"]
[SourceTitle "playchess.com"]
[Source "ChessBase"]
[SourceQuality "1"]
[TimeControl "900+5"]

1. d4 {[%emt 0:00:00]} Nf6 {[%emt 0:00:03]} 2. c4 {[%emt 0:00:03]} e6 {[%emt 0:00:01]} 3. g3 {[%emt 0:00:04]} d5 {[%emt 0:00:14]} 4. Bg2 {[%emt 0:00:03]} Be7 {[%emt 0:00:42]} 5. Nf3 {[%emt 0:00:17]} O-O {[%emt 0:00:01]} 6. O-O {[%emt 0:00:04]} dxc4 {[%emt 0:00:02]} 7. Ne5 {[%emt 0:00:17]} Nc6 {[%emt 0:00:02]} 8. Nxc6 {[%emt 0:00:04]} bxc6 {[%emt 0:00:00]} 9. Bxc6 {[%emt 0:00:03]} Rb8 {[%emt 0:00:04]} 10. Nc3 {[%emt 0:00:30]} Bb7 {[%emt 0:02:09]} 11. Bxb7 {[%emt 0:02:20]} Rxb7 {[%emt 0:00:00]} 12. b3 {[%emt 0:00:45]} cxb3 {[%emt 0:00:24]} 13. axb3 {[%emt 0:00:03]} c5 {[%emt 0:01:59]} 14. dxc5 {[%emt 0:00:03]} Bxc5 {[%emt 0:00:27]} 15. Na4 {[%emt 0:01:06]} Bd4 {[%emt 0:01:13]} 16. Bb2 {[%emt 0:00:52]} Bxb2 {[%emt 0:00:13]} 17. Nxb2 {[%emt 0:00:02]} Qb8 {[%emt 0:00:49]} 18. Ra3 {[%emt 0:00:15]} Rd8 {[%emt 0:00:17]} 19. Qc2 {[%emt 0:00:07]} h5 {[%emt 0:00:38]} 20. Nc4 {[%emt 0:00:27]} h4 {[%emt 0:00:43]} 21. Kg2 {[%emt 0:03:30]} Rb5 {[%emt 0:01:27]} 22. Rd1 {[%emt 0:00:58]} hxg3 {[%emt 0:00:57]} 23. hxg3 {[%emt 0:00:08]} Rxd1 {[%emt 0:00:27]} 24. Qxd1 {[%emt 0:00:04]} Rd5 {[%emt 0:01:12]} 25. Qc1 {[%emt 0:00:19]} Rf5 {[%emt 0:00:37]} 26. Ne3 {[%emt 0:01:35]} Qb7+ {[%emt 0:00:43]} 27. f3 {[%emt 0:00:03]} Rb5 {[%emt 0:00:29]} 28. Qc3 {[%emt 0:00:49]} e5 {[%emt 0:00:28]} 29. Nf5 {[%emt 0:01:10]} Qd7 {[%emt 0:00:36]} 30. Qc8+ {[%emt 0:00:27]} Qxc8 {[%emt 0:00:02]} 31. Ne7+ {[%emt 0:00:01]} Kf8 {[%emt 0:00:00]} 32. Nxc8 {[%emt 0:00:01]} a5 {[%emt 0:00:03]} 33. Nd6 {[%emt 0:00:04]} Rb4 {[%emt 0:00:10]} 34. Rxa5 {[%emt 0:00:09]} Rxb3 {[%emt 0:00:02]} 35. Rxe5 {[%emt 0:00:03]} Rb6 {[%emt 0:00:04]} 36. Nc4 {[%emt 0:00:12]} Rc6 {[%emt 0:00:01]} 37. Ne3 {[%emt 0:00:07]} Nd7 {[%emt 0:00:04]} 38. Rb5 {[%emt 0:00:06]} g6 {[%emt 0:00:05]} 39. Kf2 {[%emt 0:00:03]} Kg7 {[%emt 0:00:02]} 40. g4 {[%emt 0:00:02]} Re6 {[%emt 0:00:09]} 41. Rb7 {[%emt 0:00:13]} Nf8 {[%emt 0:00:08]} 42. g5 {[%emt 0:00:09]} Rc6 {[%emt 0:00:10]} 43. Ng4 {[%emt 0:00:20]} Rc5 {[%emt 0:00:11]} 44. f4 {[%emt 0:00:05]} Ne6 {[%emt 0:00:05]} 45. e3 {[%emt 0:00:03]} Rc7 {[%emt 0:00:07]} 46. Rb8 {[%emt 0:00:05]} Rc5 {[%emt 0:00:10]} 47. Nf6 {[%emt 0:00:05]} Nxg5 {[%emt 0:00:03]} 48. Ne8+ {[%emt 0:00:06]} Kf8 {[%emt 0:00:10]} 49. fxg5 {[%emt 0:00:04]} Rxg5 {[%emt 0:00:04]} 50. Nf6+ {[%emt 0:00:07]} Kg7 {[%emt 0:00:08]} 51. Ne4 {[%emt 0:00:02]} Re5 {[%emt 0:00:02]} 52. Kf3 {[%emt 0:00:02]} Ra5 {[%emt 0:00:03]} 53. Rb7 {[%emt 0:00:03]} Rf5+ {[%emt 0:00:01]} 54. Ke2 {[%emt 0:00:02]} g5 {[%emt 0:00:05]} 55. Ng3 {[%emt 0:00:05]} Re5 {[%emt 0:00:03]} 56. Kf3 {[%emt 0:00:03]} Kg6 {[%emt 0:00:04]} 57. e4 {[%emt 0:00:06]} Ra5 {[%emt 0:00:10]} 58. Rb6+ {[%emt 0:00:02]} f6 {[%emt 0:00:04]} 59. Nf5 {[%emt 0:00:05]} Ra3+ {[%emt 0:00:03]} 60. Kg4 {[%emt 0:00:02]} Ra4 {[%emt 0:00:01]} 61. Re6 {[%emt 0:00:03]} Kf7 {[%emt 0:00:04]} 62. Re7+ {[%emt 0:00:02]} Kf8 {[%emt 0:00:02]} 63. Kh5 {[%emt 0:00:03]} Ra5 {[%emt 0:00:03]} 64. Kg6 {[%emt 0:00:02]} Rxf5 {[%emt 0:00:06]} 65. Rf7+ {[%emt 0:00:03]} 1-0

[Event "EOC-ch Playoff-A 2021"]
[Site "Online"]
[Date "2021.03.29"]
[Round "1.4"]
[White "Heinemann, Thies"]
[Black "Sharafiev, Azat"]
[Result "0-1"]
[ECO "C65"]
[WhiteElo "2502"]
[BlackElo "2432"]
[Annotator "ChessBase"]
[PlyCount "90"]
[EventDate "2021.03.29"]
[EventType "team-tourn"]
[EventCountry "NET"]
[SourceTitle "playchess.com"]
[Source "ChessBase"]
[SourceQuality "1"]
[TimeControl "900+5"]

1. e4 {[%emt 0:00:00]} e5 {[%emt 0:00:03]} 2. Nf3 {[%emt 0:00:03]} Nc6 {[%emt 0:00:03]} 3. Bb5 {[%emt 0:00:01]} Nf6 {[%emt 0:00:05]} 4. Qe2 {[%emt 0:00:21]} Bc5 {[%emt 0:00:05]} 5. d3 {[%emt 0:00:05]} d6 {[%emt 0:00:32]} 6. Nbd2 {[%emt 0:00:15]} O-O {[%emt 0:00:09]} 7. c3 {[%emt 0:00:04]} Ne7 {[%emt 0:00:43]} 8. d4 {[%emt 0:00:18]} exd4 {[%emt 0:00:10]} 9. cxd4 {[%emt 0:00:02]} Bb6 {[%emt 0:00:02]} 10. d5 {[%emt 0:01:40]} Nexd5 {[%emt 0:01:00]} 11. exd5 {[%emt 0:00:10]} c6 {[%emt 0:00:02]} 12. O-O {[%emt 0:01:18]} Re8 {[%emt 0:00:12]} 13. Qd3 {[%emt 0:00:06]} cxb5 {[%emt 0:00:07]} 14. Qxb5 {[%emt 0:00:21]} Bg4 {[%emt 0:01:51]} 15. b3 {[%emt 0:02:35]} a6 {[%emt 0:03:29]} 16. Qd3 {[%emt 0:00:05]} Qd7 {[%emt 0:00:06]} 17. Nc4 {[%emt 0:00:16]} Bc5 {[%emt 0:01:04]} 18. b4 {[%emt 0:03:46]} b5 {[%emt 0:00:29]} 19. bxc5 {[%emt 0:01:03]} bxc4 {[%emt 0:00:03]} 20. Qxc4 {[%emt 0:00:03]} Bxf3 {[%emt 0:00:25]} 21. gxf3 {[%emt 0:00:08]} dxc5 {[%emt 0:01:15]} 22. Qxc5 {[%emt 0:00:07]} Qh3 {[%emt 0:01:55]} 23. Bg5 {[%emt 0:01:09]} Re5 {[%emt 0:00:43]} 24. Bf4 {[%emt 0:00:22]} Rxd5 {[%emt 0:00:33]} 25. Qc6 {[%emt 0:00:07]} Rad8 {[%emt 0:00:36]} 26. Rfe1 {[%emt 0:01:14]} Qxf3 {[%emt 0:00:14]} 27. Bg3 {[%emt 0:00:05]} h5 {[%emt 0:00:26]} 28. Rac1 {[%emt 0:00:34]} a5 {[%emt 0:00:17]} 29. Qc3 {[%emt 0:00:22]} Qg4 {[%emt 0:00:05]} 30. Qc4 {[%emt 0:00:11]} Rd4 {[%emt 0:00:05]} 31. Qe2 {[%emt 0:00:29]} h4 {[%emt 0:00:05]} 32. Qxg4 {[%emt 0:00:10]} Rxg4 {[%emt 0:00:01]} 33. Rc5 {[%emt 0:00:04]} hxg3 {[%emt 0:00:03]} 34. hxg3 {[%emt 0:00:01]} a4 {[%emt 0:00:09]} 35. Re2 {[%emt 0:00:03]} Rgd4 {[%emt 0:00:05]} 36. Ra5 {[%emt 0:00:05]} g6 {[%emt 0:00:10]} 37. Kg2 {[%emt 0:00:03]} R8d7 {[%emt 0:00:03]} 38. Ra6 {[%emt 0:00:01]} Kg7 {[%emt 0:00:02]} 39. Re3 {[%emt 0:00:08]} Rc7 {[%emt 0:00:13]} 40. Ra3 {[%emt 0:00:04]} Rcc4 {[%emt 0:00:01]} 41. Ra7 {[%emt 0:00:07]} Nd5 {[%emt 0:00:05]} 42. Rf3 {[%emt 0:00:05]} Rc7 {[%emt 0:00:02]} 43. Ra5 {[%emt 0:00:10]} Nc3 {[%emt 0:00:04]} 44. a3 {[%emt 0:00:02]} Rd2 {[%emt 0:00:08]} 45. Ra6 {[%emt 0:00:08]} Ra2 {[%emt 0:00:05]} 0-1

[Event "EOC-ch Playoff-A 2021"]
[Site "Online"]
[Date "2021.03.29"]
[Round "1.7"]
[White "Hamdouchi, Hicham"]
[Black "Steinberg, Nitzan"]
[Result "1-0"]
[ECO "B50"]
[WhiteElo "2561"]
[BlackElo "2553"]
[Annotator "ChessBase"]
[PlyCount "119"]
[EventDate "2021.03.29"]
[EventType "team-tourn"]
[EventCountry "NET"]
[SourceTitle "playchess.com"]
[Source "ChessBase"]
[SourceQuality "1"]
[TimeControl "900+5"]

1. e4 {[%emt 0:00:00]} c5 {[%emt 0:00:03]} 2. Nf3 {[%emt 0:00:03]} d6 {[%emt 0:00:02]} 3. Bc4 {[%emt 0:00:07]} e6 {[%emt 0:00:13]} 4. d3 {[%emt 0:00:05]} Nc6 {[%emt 0:00:06]} 5. Bb3 {[%emt 0:00:05]} Nf6 {[%emt 0:00:04]} 6. O-O {[%emt 0:00:05]} Be7 {[%emt 0:00:02]} 7. c3 {[%emt 0:00:02]} O-O {[%emt 0:00:03]} 8. Re1 {[%emt 0:00:02]} b5 {[%emt 0:00:19]} 9. d4 {[%emt 0:00:51]} Bb7 {[%emt 0:00:03]} 10. a3 {[%emt 0:01:31]} Rc8 {[%emt 0:00:38]} 11. Bc2 {[%emt 0:00:20]} e5 {[%emt 0:01:24]} 12. d5 {[%emt 0:00:33]} Na5 {[%emt 0:00:10]} 13. b3 {[%emt 0:00:04]} Nd7 {[%emt 0:00:11]} 14. Nbd2 {[%emt 0:00:17]} Nb6 {[%emt 0:00:08]} 15. Qe2 {[%emt 0:00:54]} a6 {[%emt 0:00:22]} 16. c4 {[%emt 0:00:30]} Qd7 {[%emt 0:01:45]} 17. Rb1 {[%emt 0:01:54]} Rb8 {[%emt 0:00:53]} 18. Bb2 {[%emt 0:01:13]} Bc8 {[%emt 0:01:28]} 19. Bc3 {[%emt 0:00:37]} Nb7 {[%emt 0:00:05]} 20. cxb5 {[%emt 0:01:15]} axb5 {[%emt 0:00:02]} 21. Bd3 {[%emt 0:00:02]} f5 {[%emt 0:00:52]} 22. Bxb5 {[%emt 0:00:12]} Qc7 {[%emt 0:00:04]} 23. Bc4 {[%emt 0:01:43]} Kh8 {[%emt 0:00:19]} 24. exf5 {[%emt 0:00:57]} Bxf5 {[%emt 0:00:04]} 25. Rb2 {[%emt 0:00:37]} Ra8 {[%emt 0:00:03]} 26. a4 {[%emt 0:00:08]} Na5 {[%emt 0:00:31]} 27. Bxa5 {[%emt 0:00:56]} Rxa5 {[%emt 0:00:03]} 28. Qe3 {[%emt 0:00:02]} Qb7 {[%emt 0:01:26]} 29. Qc3 {[%emt 0:00:21]} Raa8 {[%emt 0:00:02]} 30. Ne4 {[%emt 0:00:39]} Nxd5 {[%emt 0:01:06]} 31. Nxc5 {[%emt 0:00:44]} dxc5 {[%emt 0:02:11]} 32. Qxe5 {[%emt 0:00:03]} Bf6 {[%emt 0:00:48]} 33. Qxf5 {[%emt 0:00:01]} Bxb2 {[%emt 0:00:03]} 34. Bxd5 {[%emt 0:00:28]} Qb4 {[%emt 0:01:12]} 35. Qb1 {[%emt 0:00:12]} Rae8 {[%emt 0:00:03]} 36. Rxe8 {[%emt 0:00:10]} Rxe8 {[%emt 0:00:01]} 37. g3 {[%emt 0:00:03]} Bf6 {[%emt 0:00:20]} 38. Qf5 {[%emt 0:00:03]} Qc3 {[%emt 0:00:28]} 39. Kg2 {[%emt 0:00:04]} Rd8 {[%emt 0:00:21]} 40. Be4 {[%emt 0:00:13]} g6 {[%emt 0:00:01]} 41. Qe6 {[%emt 0:00:01]} Kg7 {[%emt 0:00:02]} 42. h4 {[%emt 0:00:07]} Qa5 {[%emt 0:00:19]} 43. h5 {[%emt 0:00:07]} Qc7 {[%emt 0:00:08]} 44. h6+ {[%emt 0:00:03]} Kxh6 {[%emt 0:00:01]} 45. Qxf6 {[%emt 0:00:02]} Qd6 {[%emt 0:00:04]} 46. Qxd6 {[%emt 0:00:03]} Rxd6 {[%emt 0:00:02]} 47. Ne5 {[%emt 0:00:03]} Kg7 {[%emt 0:00:04]} 48. Nc4 {[%emt 0:00:05]} Rd1 {[%emt 0:00:03]} 49. a5 {[%emt 0:00:04]} Ra1 {[%emt 0:00:02]} 50. Bb7 {[%emt 0:00:01]} Kf6 {[%emt 0:00:01]} 51. a6 {[%emt 0:00:02]} Ke7 {[%emt 0:00:08]} 52. Nb6 {[%emt 0:00:02]} Kd8 {[%emt 0:00:05]} 53. Na4 {[%emt 0:00:05]} Kc7 {[%emt 0:00:08]} 54. Nxc5 {[%emt 0:00:02]} Ra3 {[%emt 0:00:07]} 55. b4 {[%emt 0:00:06]} Kb6 {[%emt 0:00:03]} 56. Nd7+ {[%emt 0:00:09]} Kb5 {[%emt 0:00:01]} 57. Ne5 {[%emt 0:00:09]} g5 {[%emt 0:00:16]} 58. g4 {[%emt 0:00:12]} h6 {[%emt 0:00:07]} 59. Nf7 {[%emt 0:00:06]} Kxb4 {[%emt 0:00:02]} 60. Nxh6 {[%emt 0:00:02]} 1-0

[Event "EOC-ch Playoff-A 2021"]
[Site "Online"]
[Date "2021.03.29"]
[Round "1.8"]
[White "Huzman, Alexander"]
[Black "Delorme, Axel"]
[Result "1-0"]
[ECO "C00"]
[WhiteElo "2561"]
[BlackElo "2480"]
[Annotator "ChessBase"]
[PlyCount "71"]
[EventDate "2021.03.29"]
[EventType "team-tourn"]
[EventCountry "NET"]
[SourceTitle "playchess.com"]
[Source "ChessBase"]
[SourceQuality "1"]
[TimeControl "900+5"]

1. Nf3 {[%emt 0:00:00]} d5 {[%emt 0:00:07]} 2. g3 {[%emt 0:00:04]} Nf6 {[%emt 0:00:10]} 3. Bg2 {[%emt 0:00:04]} e6 {[%emt 0:00:04]} 4. O-O {[%emt 0:00:28]} Be7 {[%emt 0:01:38]} 5. d3 {[%emt 0:00:12]} O-O {[%emt 0:00:21]} 6. Nbd2 {[%emt 0:00:04]} c5 {[%emt 0:00:03]} 7. e4 {[%emt 0:00:02]} Nc6 {[%emt 0:00:01]} 8. Re1 {[%emt 0:00:22]} b5 {[%emt 0:01:17]} 9. exd5 {[%emt 0:00:45]} exd5 {[%emt 0:00:22]} 10. Nb3 {[%emt 0:00:55]} Be6 {[%emt 0:03:25]} 11. Bf4 {[%emt 0:00:39]} Rc8 {[%emt 0:00:43]} 12. h3 {[%emt 0:02:10]} d4 {[%emt 0:01:15]} 13. a4 {[%emt 0:02:48]} a6 {[%emt 0:00:07]} 14. axb5 {[%emt 0:00:26]} axb5 {[%emt 0:00:01]} 15. Ne5 {[%emt 0:00:02]} Nxe5 {[%emt 0:00:09]} 16. Bxe5 {[%emt 0:00:02]} Nd5 {[%emt 0:02:09]} 17. g4 {[%emt 0:01:58]} Bd6 {[%emt 0:00:32]} 18. Qd2 {[%emt 0:00:06]} Bxe5 {[%emt 0:00:25]} 19. Rxe5 {[%emt 0:00:04]} Qd6 {[%emt 0:00:02]} 20. Rae1 {[%emt 0:00:03]} Nb6 {[%emt 0:00:57]} 21. Qa5 {[%emt 0:01:28]} Bd7 {[%emt 0:00:18]} 22. Qa6 {[%emt 0:01:18]} Rfe8 {[%emt 0:00:33]} 23. Rxe8+ {[%emt 0:00:07]} Rxe8 {[%emt 0:00:03]} 24. Rxe8+ {[%emt 0:00:05]} Bxe8 {[%emt 0:00:01]} 25. Nd2 {[%emt 0:00:04]} Kf8 {[%emt 0:00:53]} 26. Ne4 {[%emt 0:00:06]} Qc7 {[%emt 0:00:01]} 27. Qa3 {[%emt 0:00:16]} Na4 {[%emt 0:00:04]} 28. b4 {[%emt 0:00:47]} c4 {[%emt 0:00:32]} 29. Nc5 {[%emt 0:00:02]} c3 {[%emt 0:00:11]} 30. Nxa4 {[%emt 0:00:21]} bxa4 {[%emt 0:00:03]} 31. b5+ {[%emt 0:00:02]} Qe7 {[%emt 0:00:06]} 32. Qxa4 {[%emt 0:00:03]} Qc5 {[%emt 0:00:12]} 33. Bc6 {[%emt 0:00:04]} Bxc6 {[%emt 0:00:40]} 34. bxc6 {[%emt 0:00:03]} Qb6 {[%emt 0:00:06]} 35. Qa8+ {[%emt 0:00:06]} Ke7 {[%emt 0:00:03]} 36. Qb7+ {[%emt 0:00:02]} 1-0

[Event "EOC-ch Playoff-A 2021"]
[Site "Online"]
[Date "2021.03.29"]
[Round "1.12"]
[White "Buhmann, Rainer"]
[Black "Wieczorek, Oskar"]
[Result "1/2-1/2"]
[ECO "E61"]
[WhiteElo "2580"]
[BlackElo "2498"]
[Annotator "ChessBase"]
[PlyCount "168"]
[EventDate "2021.03.29"]
[EventType "team-tourn"]
[EventCountry "NET"]
[SourceTitle "playchess.com"]
[Source "ChessBase"]
[SourceQuality "1"]
[TimeControl "900+5"]

1. d4 {[%emt 0:00:00]} Nf6 {[%emt 0:00:04]} 2. Nf3 {[%emt 0:00:02]} g6 {[%emt 0:00:06]} 3. c4 {[%emt 0:00:02]} Bg7 {[%emt 0:00:07]} 4. e3 {[%emt 0:00:01]} O-O {[%emt 0:00:11]} 5. Be2 {[%emt 0:00:02]} c5 {[%emt 0:00:03]} 6. d5 {[%emt 0:00:03]} d6 {[%emt 0:00:09]} 7. Nc3 {[%emt 0:00:04]} e6 {[%emt 0:00:02]} 8. O-O {[%emt 0:00:03]} exd5 {[%emt 0:00:01]} 9. cxd5 {[%emt 0:00:01]} Re8 {[%emt 0:00:12]} 10. Nd2 {[%emt 0:00:02]} Na6 {[%emt 0:01:17]} 11. Nc4 {[%emt 0:00:43]} Nc7 {[%emt 0:00:10]} 12. a4 {[%emt 0:00:09]} b6 {[%emt 0:00:16]} 13. f3 {[%emt 0:00:26]} Ba6 {[%emt 0:00:06]} 14. e4 {[%emt 0:00:37]} Rb8 {[%emt 0:00:11]} 15. Bg5 {[%emt 0:01:00]} Bxc4 {[%emt 0:00:41]} 16. Bxc4 {[%emt 0:00:03]} a6 {[%emt 0:00:01]} 17. Qe2 {[%emt 0:01:46]} Qc8 {[%emt 0:00:31]} 18. Rab1 {[%emt 0:00:13]} Nd7 {[%emt 0:00:14]} 19. f4 {[%emt 0:01:50]} Qb7 {[%emt 0:05:13]} 20. Qg4 {[%emt 0:02:48]} Qc8 {[%emt 0:01:43]} 21. e5 {[%emt 0:00:49]} b5 {[%emt 0:00:03]} 22. exd6 {[%emt 0:01:55]} bxc4 {[%emt 0:00:02]} 23. dxc7 {[%emt 0:00:01]} Qxc7 {[%emt 0:00:00]} 24. f5 {[%emt 0:00:26]} Bd4+ {[%emt 0:00:32]} 25. Kh1 {[%emt 0:00:01]} Ne5 {[%emt 0:00:06]} 26. Qg3 {[%emt 0:00:52]} Qd7 {[%emt 0:01:26]} 27. Ne4 {[%emt 0:00:33]} Nd3 {[%emt 0:00:03]} 28. Nf6+ {[%emt 0:00:07]} Bxf6 {[%emt 0:00:02]} 29. Bxf6 {[%emt 0:00:01]} Qxd5 {[%emt 0:00:10]} 30. Bc3 {[%emt 0:00:17]} Rb7 {[%emt 0:00:50]} 31. Qh4 {[%emt 0:00:32]} Re2 {[%emt 0:00:18]} 32. Rf3 {[%emt 0:00:25]} Ne5 {[%emt 0:01:37]} 33. Qf6 {[%emt 0:01:12]} Rd7 {[%emt 0:00:17]} 34. fxg6 {[%emt 0:00:09]} hxg6 {[%emt 0:00:07]} 35. Rbf1 {[%emt 0:00:12]} Qd6 {[%emt 0:00:28]} 36. Qh4 {[%emt 0:00:13]} f5 {[%emt 0:00:02]} 37. Rh3 {[%emt 0:00:07]} Rg7 {[%emt 0:00:25]} 38. Qh8+ {[%emt 0:00:07]} Kf7 {[%emt 0:00:02]} 39. Qa8 {[%emt 0:00:08]} Qc6 {[%emt 0:00:17]} 40. Qxc6 {[%emt 0:00:04]} Nxc6 {[%emt 0:00:00]} 41. Bxg7 {[%emt 0:00:03]} Kxg7 {[%emt 0:00:00]} 42. Rc3 {[%emt 0:00:03]} Ne5 {[%emt 0:00:04]} 43. Rb1 {[%emt 0:00:02]} Kf6 {[%emt 0:00:04]} 44. Kg1 {[%emt 0:00:02]} f4 {[%emt 0:00:03]} 45. h3 {[%emt 0:00:02]} g5 {[%emt 0:00:02]} 46. Kf1 {[%emt 0:00:01]} Rd2 {[%emt 0:00:01]} 47. a5 {[%emt 0:00:03]} Kf5 {[%emt 0:00:02]} 48. b3 {[%emt 0:00:04]} Ra2 {[%emt 0:00:11]} 49. bxc4 {[%emt 0:00:01]} Rxa5 {[%emt 0:00:02]} 50. Re1 {[%emt 0:00:05]} Ra4 {[%emt 0:00:06]} 51. Rc2 {[%emt 0:00:04]} Nxc4 {[%emt 0:00:11]} 52. Kf2 {[%emt 0:00:01]} Kf6 {[%emt 0:00:12]} 53. g3 {[%emt 0:00:22]} fxg3+ {[%emt 0:00:09]} 54. Kxg3 {[%emt 0:00:02]} Ra3+ {[%emt 0:00:02]} 55. Kf2 {[%emt 0:00:21]} Ne5 {[%emt 0:00:03]} 56. Re3 {[%emt 0:00:02]} Ra5 {[%emt 0:00:06]} 57. Kg3 {[%emt 0:00:05]} c4 {[%emt 0:00:03]} 58. h4 {[%emt 0:00:02]} gxh4+ {[%emt 0:00:02]} 59. Kxh4 {[%emt 0:00:02]} Rd5 {[%emt 0:00:03]} 60. Kg3 {[%emt 0:00:02]} Rd3 {[%emt 0:00:03]} 61. Kf4 {[%emt 0:00:07]} Rxe3 {[%emt 0:00:08]} 62. Kxe3 {[%emt 0:00:02]} Kf5 {[%emt 0:00:01]} 63. Kd4 {[%emt 0:00:03]} Nf3+ {[%emt 0:00:02]} 64. Kxc4 {[%emt 0:00:02]} Ne5+ {[%emt 0:00:01]} 65. Kd5 {[%emt 0:00:03]} Nf3 {[%emt 0:00:02]} 66. Ra2 {[%emt 0:00:05]} Kf4 {[%emt 0:00:03]} 67. Rxa6 {[%emt 0:00:02]} Ke3 {[%emt 0:00:01]} 68. Ra3+ {[%emt 0:00:02]} Kf4 {[%emt 0:00:01]} 69. Ra4+ {[%emt 0:00:01]} Ke3 {[%emt 0:00:02]} 70. Re4+ {[%emt 0:00:03]} Kd3 {[%emt 0:00:02]} 71. Re8 {[%emt 0:00:03]} Nd2 {[%emt 0:00:02]} 72. Ra8 {[%emt 0:00:03]} Ke3 {[%emt 0:00:06]} 73. Ra3+ {[%emt 0:00:03]} Kf4 {[%emt 0:00:02]} 74. Ra4+ {[%emt 0:00:04]} Ke3 {[%emt 0:00:02]} 75. Rh4 {[%emt 0:00:05]} Nf3 {[%emt 0:00:03]} 76. Re4+ {[%emt 0:00:03]} Kd3 {[%emt 0:00:03]} 77. Re7 {[%emt 0:00:03]} Nd2 {[%emt 0:00:03]} 78. Ra7 {[%emt 0:00:05]} Ke3 {[%emt 0:00:03]} 79. Ra2 {[%emt 0:00:05]} Nf3 {[%emt 0:00:03]} 80. Ra3+ {[%emt 0:00:05]} Kf4 {[%emt 0:00:02]} 81. Rd3 {[%emt 0:00:02]} Ng5 {[%emt 0:00:11]} 82. Rd1 {[%emt 0:00:08]} Nf3 {[%emt 0:00:04]} 83. Rd3 {[%emt 0:00:06]} Ng5 {[%emt 0:00:05]} 84. Ra3 {[%emt 0:00:01]} Nf3 {[%emt 0:00:03]} 1/2-1/2

[Event "EOC-ch Playoff-A 2021"]
[Site "Online"]
[Date "2021.03.29"]
[Round "2.3"]
[White "Engel, Luis"]
[Black "Wagner, Dennis"]
[Result "1-0"]
[ECO "C77"]
[WhiteElo "2553"]
[BlackElo "2581"]
[Annotator "ChessBase"]
[PlyCount "69"]
[EventDate "2021.03.29"]
[EventType "team-tourn"]
[EventCountry "NET"]
[SourceTitle "playchess.com"]
[Source "ChessBase"]
[SourceQuality "1"]
[TimeControl "900+5"]

1. e4 {[%emt 0:00:00]} e5 {[%emt 0:00:03]} 2. Nf3 {[%emt 0:00:02]} Nc6 {[%emt 0:00:02]} 3. Bb5 {[%emt 0:00:03]} a6 {[%emt 0:00:01]} 4. Ba4 {[%emt 0:00:02]} Nf6 {[%emt 0:00:05]} 5. d3 {[%emt 0:00:02]} b5 {[%emt 0:00:18]} 6. Bb3 {[%emt 0:00:04]} Be7 {[%emt 0:00:01]} 7. a4 {[%emt 0:00:05]} b4 {[%emt 0:00:03]} 8. Nbd2 {[%emt 0:00:02]} d6 {[%emt 0:00:15]} 9. Nc4 {[%emt 0:00:07]} O-O {[%emt 0:00:23]} 10. h3 {[%emt 0:00:05]} Rb8 {[%emt 0:00:18]} 11. O-O {[%emt 0:00:03]} h6 {[%emt 0:00:02]} 12. Re1 {[%emt 0:00:06]} Be6 {[%emt 0:00:04]} 13. Be3 {[%emt 0:00:17]} Nd7 {[%emt 0:01:21]} 14. a5 {[%emt 0:01:20]} Bf6 {[%emt 0:00:35]} 15. Ba4 {[%emt 0:01:34]} Ne7 {[%emt 0:00:17]} 16. Qd2 {[%emt 0:01:02]} Bxc4 {[%emt 0:01:48]} 17. dxc4 {[%emt 0:00:02]} Nc5 {[%emt 0:00:01]} 18. Bxc5 {[%emt 0:00:31]} dxc5 {[%emt 0:00:03]} 19. Qe3 {[%emt 0:00:08]} Ng6 {[%emt 0:00:55]} 20. Rad1 {[%emt 0:01:40]} Qe7 {[%emt 0:02:00]} 21. Rd7 {[%emt 0:00:03]} Qe6 {[%emt 0:00:01]} 22. Qxc5 {[%emt 0:00:07]} Be7 {[%emt 0:01:57]} 23. Qxc7 {[%emt 0:00:32]} Rfc8 {[%emt 0:00:23]} 24. Rxe7 {[%emt 0:01:34]} Rxc7 {[%emt 0:00:10]} 25. Rxc7 {[%emt 0:00:35]} Nf4 {[%emt 0:03:50]} 26. Rc6 {[%emt 0:01:07]} Qd7 {[%emt 0:00:13]} 27. c5 {[%emt 0:01:01]} Rc8 {[%emt 0:01:16]} 28. Nxe5 {[%emt 0:00:20]} Qd8 {[%emt 0:00:27]} 29. Rxc8 {[%emt 0:00:32]} Qxc8 {[%emt 0:00:00]} 30. c6 {[%emt 0:00:42]} Qd8 {[%emt 0:00:02]} 31. Nd3 {[%emt 0:00:27]} Qxa5 {[%emt 0:00:23]} 32. Nxf4 {[%emt 0:00:11]} Qxa4 {[%emt 0:00:02]} 33. c7 {[%emt 0:00:16]} Qxc2 {[%emt 0:00:03]} 34. Nd5 {[%emt 0:00:03]} Kf8 {[%emt 0:00:22]} 35. Nc3 {[%emt 0:00:08]} 1-0